bitfinex/quotes_ETHUSD_20240817
["timestamp","ask_amount","ask_price","bid_price","bid_amount"]
[1723909720866,4.18909,2613.2,2612.7,5.457132]
[1723909721527,1.319,2613.2,2612.7,5.457122]
[1723909721701,12.7548,2613.4,2612.7,5.457122]
[1723909721702,14.0738,2613.4,2612.7,5.457122]
[1723909721928,2.86999,2613.3,2612.8,2.87045]
[1723909722110,7.4,2613.4,2613.0,2.87018]
[1723909722312,22.63971,2613.5,2613.0,2.87018]
[1723909723591,23.95871,2613.5,2612.9,2.87031]
[1723909723828,2.86988,2613.4,2612.9,2.87031]
[1723909728233,7.99816125,2613.5,2613.0,2.87025]
[1723909728538,7.0585,2613.5,2613.0,2.87025]
[1723909730233,2.86984,2613.4,2613.0,2.87025]
[1723909738902,2.86984,2613.4,2612.9,2.87036]
[1723909740500,5.73972,2613.4,2612.9,2.87036]
[1723909740729,8.671082,2613.4,2612.9,2.87036]
[1723909740930,5.801202,2613.4,2612.9,2.87036]
[1723909741290,2.86984,2613.4,2613.0,2.87025]
[1723909743618,2.86984,2613.4,2612.9,2.87036]
[1723909743935,8.67107,2613.4,2612.9,2.87036]
[1723909744099,2.86995,2613.3,2612.8,2.87047]
[1723909744498,2.86995,2613.3,2612.8,5.7409]
[1723909745140,5.31785,2613.3,2612.8,5.74085]
[1723909745323,6.316863,2613.3,2612.8,5.74085]
[1723909746386,6.316863,2613.3,2612.8,5.74084]
[1723909746623,6.316863,2613.3,2612.8,2.87042]
[1723909747606,6.316863,2613.3,2612.8,5.74084]
[1723909748086,2.4479,2613.3,2612.8,2.87042]
[1723909748321,3.7669,2613.5,2613.0,2.87018]
[1723909748518,27.17,2613.7,2613.1,5.16855]
[1723909748768,33.84897125,2613.7,2613.2,2.87002]
[1723909748918,2.4479,2613.8,2613.3,2.86991]
[1723909749119,7.4,2614.0,2613.5,5.16821]
[1723909749318,2.86918,2614.0,2613.5,5.16821]
[1723909749568,3.819689,2614.0,2613.5,5.16821]
[1723909751067,2.86941,2613.8,2613.3,2.2985]
[1723909751231,2.86941,2613.8,2613.3,5.16841]
[1723909752552,5.73886,2613.8,2613.3,5.16841]
[1723909752755,2.86941,2613.8,2613.3,5.16841]
[1723909754194,5.138749,2614.0,2613.4,2.8698]
[1723909754195,2.86927,2613.9,2613.4,2.8698]
[1723909755960,2.86924,2614.0,2613.5,2.86962]
[1723909756163,2.4479,2614.1,2613.6,2.86959]
[1723909756483,5.31701,2614.1,2613.6,2.86959]
[1723909756645,0.818602,2614.0,2613.6,2.86959]
[1723909756849,5.31701,2614.1,2613.6,2.86959]
[1723909757807,2.86916,2614.0,2613.4,4.18875]
[1723909757961,4.18828,2613.9,2613.3,5.16842]
[1723909758353,2.86945,2613.8,2613.3,5.16842]
[1723909761801,2.86952,2613.7,2613.3,2.86992]
[1723909762098,0.955437,2613.7,2613.3,2.86992]
[1723909763758,3.824977,2613.7,2613.1,2.87004]
[1723909764135,3.824977,2613.7,2613.3,2.86993]
[1723909764972,0.955437,2613.7,2613.3,2.86993]
[1723909765135,5.36578,2613.8,2613.3,2.86993]
[1723909765967,5.36578,2613.8,2613.3,2.86987]
[1723909767070,5.36578,2613.8,2613.4,2.86981]
[1723909767368,5.36578,2613.8,2613.3,2.86987]
[1723909767537,0.668478,2613.7,2613.3,2.86987]
[1723909769144,1.319,2613.5,2613.3,2.86987]
[1723909769479,1.319,2613.5,2612.3,3.30773064]
[1723909769480,2.4964,2613.1,2612.6,2.87067]
[1723909769688,0.53665,2613.0,2612.6,2.87067]
[1723909770057,2.4964,2613.1,2612.6,2.87067]
[1723909770550,2.4964,2613.3,2612.8,2.87047]
[1723909770915,5.36635,2613.3,2612.7,2.999222]
[1723909771087,3.538579,2613.2,2612.7,2.999222]
[1723909771877,2.4964,2613.3,2612.9,2.87034]
[1723909772081,2.4964,2613.3,2613.0,2.87026]
[1723909772948,2.4964,2613.3,2612.8,2.87038]
[1723909773146,0.536629,2613.2,2612.8,2.87038]
[1723909773772,0.536629,2613.2,2612.7,0.128702]
[1723909774091,2.4964,2613.3,2612.8,2.87041]
[1723909774293,2.4964,2613.3,2612.9,2.87031]
[1723909774978,2.4964,2613.3,2613.0,2.87015]
[1723909778871,5.36634,2613.3,2612.8,2.87041]
[1723909779281,2.4964,2613.3,2612.8,2.87041]
[1723909779479,2.4964,2613.3,2612.9,2.87037]
[1723909782748,2.4964,2613.3,2612.9,2.87032]
[1723909783441,2.4964,2613.3,2612.9,5.74062]
[1723909783629,2.4964,2613.3,2612.9,2.87031]
[1723909783951,2.4964,2613.3,2612.9,5.74062]
[1723909784106,2.4964,2613.3,2613.0,2.87026]
[1723909784505,2.86983,2613.4,2613.0,2.87026]
[1723909785498,5.73973,2613.4,2612.9,5.23637]
[1723909785704,2.86983,2613.4,2612.9,2.87037]
[1723909785904,5.73973,2613.4,2612.9,2.87037]
[1723909786815,2.86993,2613.3,2612.9,2.87037]
[1723909787259,2.86983,2613.4,2612.9,2.87037]
[1723909787456,2.86983,2613.4,2612.9,2.8703]
[1723909787756,2.86983,2613.4,2612.9,5.74062]
[1723909787905,2.86983,2613.4,2612.9,2.8703]
[1723909788249,2.86983,2613.4,2612.9,5.74061]
[1723909788482,2.2795,2613.5,2612.7,36.447702]
[1723909788616,2.2795,2613.5,2613.0,5.23618]
[1723909789317,2.2795,2613.5,2613.2,2.87003]
[1723909790948,2.2795,2613.5,2613.2,2.86998]
[1723909792356,27.17,2613.6,2613.2,2.86998]
[1723909792524,27.17,2613.6,2613.3,2.86986]
[1723909792726,2.2795,2613.7,2613.3,2.86986]
[1723909792927,5.149,2613.7,2613.2,2.87004]
[1723909793426,6.468,2613.7,2613.2,2.87004]
[1723909793813,4.18893,2613.3,2612.8,2.87043]
[1723909794012,2.2795,2613.2,2612.7,5.999212]
[1723909794520,2.926337,2613.2,2612.7,0.128702]
[1723909794729,10.26972,2613.5,2612.7,0.128702]
[1723909794730,1.319,2613.1,2612.7,0.128702]
[1723909794929,5.14984,2613.0,2612.7,0.128702]
[1723909797032,2.2795,2613.0,2612.7,0.128702]
[1723909797778,5.14977,2613.0,2612.7,0.128702]
[1723909798677,8.822082,2613.0,2612.7,0.128702]
[1723909798878,2.87038,2612.9,2612.7,0.128702]
[1723909799658,5.951762,2613.0,2612.7,0.128702]
[1723909800865,5.14977,2613.0,2612.7,0.128702]
[1723909801795,2.87037,2612.9,2612.7,0.128702]
[1723909802950,2.3042,2612.8,2612.7,0.128702]
[1723909803392,2.87048,2612.8,2612.7,0.128702]
[1723909803599,5.17468,2612.8,2612.7,0.128702]
[1723909803894,6.111085,2612.8,2612.7,0.128702]
[1723909804666,8.981565,2612.8,2612.7,0.128702]
[1723909805089,31.622045,2612.8,2612.7,0.128702]
[1723909808319,35.488045,2612.8,2612.7,0.128702]
[1723909808504,2.87133,2612.1,2611.6,35.0]
[1723909808711,5.17557,2612.0,2611.6,35.0]
[1723909809104,5.17557,2612.0,2611.5,2.8719]
[1723909809105,2.3042,2612.0,2611.5,5.74375]
[1723909809304,2.3042,2612.0,2611.6,2.87179]
[1723909811225,5.17557,2612.0,2611.5,2.8719]
[1723909812334,2.87148,2611.9,2611.4,37.872]
[1723909813110,5.74304,2611.9,2611.4,37.872]
[1723909813312,2.87148,2611.9,2611.3,2.87211]
[1723909813558,2.87163,2611.8,2611.3,2.87211]
[1723909813697,2.87163,2611.8,2611.3,37.87211]
[1723909813905,2.87163,2611.8,2611.4,2.872]
[1723909814106,2.87152,2611.9,2611.4,2.872]
[1723909814301,5.17567,2612.0,2611.4,2.872]
[1723909814507,10.27135,2612.1,2611.6,2.87178]
[1723909814707,11.298467,2612.1,2611.6,2.87178]
[1723909814935,11.298467,2612.1,2611.6,37.87178]
[1723909815115,2.87136,2612.0,2611.6,35.0]
[1723909815448,2.4565,2611.9,2611.6,35.0]
[1723909816003,2.87159,2611.8,2611.3,8.22978]
[1723909816349,2.87159,2611.8,2611.3,5.35766]
[1723909816647,2.87159,2611.8,2611.4,35.0]
[1723909816944,5.32797,2611.9,2611.4,37.872]
[1723909817501,5.32797,2611.9,2611.3,2.87206]
[1723909817502,2.87158,2611.8,2611.3,2.87206]
[1723909817841,2.87158,2611.8,2611.3,5.74414]
[1723909818221,2.87158,2611.8,2611.3,5.74413]
[1723909818417,2.87158,2611.8,2611.3,2.87206]
[1723909819153,2.87158,2611.8,2611.3,5.74413]
[1723909819451,7.05416437,2611.9,2611.4,2.87201]
[1723909819637,5.32797,2611.9,2611.4,2.87201]
[1723909820759,5.32797,2611.9,2611.4,5.36401]
[1723909821538,2.87158,2611.8,2611.3,2.87212]
[1723909821743,3.69152,2611.8,2611.3,2.87212]
[1723909822277,2.87158,2611.8,2611.3,2.87212]
[1723909824171,2.87158,2611.8,2611.3,5.7442]
[1723909825875,2.87158,2611.8,2611.3,40.7442]
[1723909826371,5.32797,2611.9,2611.4,5.36399]
[1723909826947,5.32797,2611.9,2611.4,2.87199]
[1723909827500,2.87158,2611.8,2611.4,2.82199]
[1723909828470,2.4565,2611.9,2611.4,5.69391]
[1723909828649,2.4565,2611.9,2611.5,2.87189]
[1723909828844,5.74286,2612.0,2611.6,2.87175]
[1723909828845,2.37,2612.0,2611.6,2.87175]
[1723909830280,2.37,2612.0,2611.6,5.74349]
[1723909830481,2.37,2612.0,2611.6,2.87174]
[1723909830967,2.37,2612.0,2611.6,5.74348]
[1723909831165,10.27131,2612.1,2611.6,2.87174]
[1723909831495,2.87131,2612.1,2611.6,2.87174]
[1723909831797,7.4,2612.4,2611.9,2.87139]
[1723909831997,7.4,2612.4,2612.1,2.87115]
[1723909832552,10.27092,2612.4,2612.0,2.87135]
[1723909835082,10.27092,2612.4,2611.4,3.0]
[1723909835083,2.37,2612.1,2611.6,5.36372]
[1723909835257,2.37,2612.1,2611.6,2.87172]
[1723909836101,2.87137,2612.0,2611.6,2.82172]
[1723909836260,3.527484,2612.0,2611.6,2.82172]
[1723909836658,0.656114,2612.0,2611.6,2.82172]
[1723909836903,2.37,2612.1,2611.6,2.82172]
[1723909837207,5.2413,2612.1,2611.6,2.82172]
[1723909841571,2.87137,2612.0,2611.6,2.82172]
[1723909842295,2.37,2612.1,2611.6,5.69346]
[1723909842822,5.24125,2612.1,2611.6,2.82172]
[1723909843016,0.42462866,2612.0,2611.6,2.82172]
[1723909844504,5.24125,2612.1,2611.6,2.82172]
[1723909846296,5.24125,2612.1,2611.6,5.69346]
[1723909846627,2.37,2612.1,2611.7,2.87166]
[1723909846931,2.87114,2612.2,2611.8,2.87157]
[1723909847088,4.80623413,2612.2,2611.8,2.87157]
[1723909847627,1.93509413,2612.2,2611.8,2.87157]
[1723909847829,2.87108,2612.3,2611.8,2.87157]
[1723909848740,2.87116,2612.2,2611.8,2.87157]
[1723909849293,2.87116,2612.2,2611.7,2.87168]
[1723909849539,3.158366,2612.1,2611.6,2.87172]
[1723909849745,5.557766,2612.1,2611.7,1.33204696]
[1723909849956,5.557766,2612.1,2611.6,2.87172]
[1723909850437,0.8428926,2612.0,2611.7,1.33207028]
[1723909850637,0.8428926,2612.0,2611.6,2.87172]
[1723909850809,5.27065,2612.1,2611.7,1.33205556]
[1723909851014,5.27065,2612.1,2611.6,2.87172]
[1723909851223,5.27065,2612.1,2611.7,1.33206522]
[1723909851427,5.27065,2612.1,2611.6,2.87172]
[1723909851633,5.27065,2612.1,2611.7,1.33206516]
[1723909851931,6.084818,2612.1,2611.6,2.87172]
[1723909852138,6.084818,2612.1,2611.7,1.33206542]
[1723909852310,6.084818,2612.1,2611.6,2.87172]
[1723909852512,2.87103,2612.3,2611.8,5.16338]
[1723909852719,16.47978125,2612.4,2611.9,2.87141]
[1723909853027,3.80945125,2612.3,2611.9,2.87141]
[1723909854861,11.20945125,2612.4,2612.0,2.87136]
[1723909855013,7.4,2612.4,2612.0,2.87136]
[1723909855219,19.77,2612.3,2612.0,2.87136]
[1723909855441,19.77,2612.3,2611.9,2.87141]
[1723909855923,19.77,2612.3,2612.0,1.33190153]
[1723909856253,19.77,2612.3,2611.9,2.87141]
[1723909856856,19.77,2612.3,2612.0,1.33188807]
[1723909857025,19.77,2612.3,2611.9,2.87141]
[1723909857225,19.77,2612.3,2612.0,1.33187738]
[1723909857445,19.77,2612.3,2611.9,2.87141]
[1723909858144,22.321181,2612.3,2611.9,2.87141]
[1723909858345,25.192211,2612.3,2611.9,2.87141]
[1723909860671,25.192211,2612.3,2611.7,3.67298512]
[1723909860672,2.8712,2612.2,2611.7,3.67298512]
[1723909860883,2.49375866,2612.1,2611.8,3.32991936]
[1723909861081,2.49375866,2612.1,2611.7,2.87161]
[1723909861388,2.87125,2612.1,2611.8,1.33197637]
[1723909861588,2.3658,2611.8,2611.4,2.87202]
[1723909861758,2.3658,2611.8,2611.5,2.87189]
[1723909861961,2.3658,2611.8,2611.4,2.87202]
[1723909862292,2.87179,2611.7,2611.1,2.87227]
[1723909862497,3.10837,2611.7,2611.2,7.52181774]
[1723909862678,3.10837,2611.7,2611.2,4.19118]
[1723909863175,0.23658,2611.7,2611.2,1.319]
[1723909863489,2.8717,2611.7,2611.3,1.33221371]
[1723909863666,2.8717,2611.7,2611.3,2.87211]
[1723909864179,2.87136,2612.0,2611.5,2.8719]
[1723909864503,2.87147,2611.9,2611.4,5.33161]
[1723909865284,2.87147,2611.9,2611.4,2.87201]
[1723909865654,2.787849,2612.0,2611.5,2.87189]
[1723909865854,5.23713,2612.1,2611.5,2.87189]
[1723909866097,7.737843,2612.1,2611.5,2.87189]
[1723909866395,2.87142,2612.0,2611.5,2.87189]
[1723909866595,7.737843,2612.1,2611.6,2.87179]
[1723909866755,5.23713,2612.1,2611.6,2.87179]
[1723909867159,19.77,2612.2,2611.7,2.87168]
[1723909867398,22.6412,2612.2,2611.7,2.87168]
[1723909869000,22.6412,2612.2,2611.5,5.33142]
[1723909869001,22.6412,2612.2,2611.5,8.20322]
[1723909869303,2.3658,2612.0,2611.5,2.8718]
[1723909869858,2.3658,2612.0,2611.5,5.74365]
[1723909870116,2.3658,2612.0,2611.5,2.8718]
[1723909870486,2.87127,2612.1,2611.6,2.87178]
[1723909871113,8.883185,2612.1,2611.5,2.8718]
[1723909871820,2.87139,2612.0,2611.5,2.8718]
[1723909871988,6.011865,2612.1,2611.5,5.74362]
[1723909871989,8.883185,2612.1,2611.5,5.74362]
[1723909872200,6.011865,2612.1,2611.5,5.74363]
[1723909872523,6.011865,2612.1,2611.6,2.87178]
[1723909873524,5.23694,2612.2,2611.7,2.87167]
[1723909874907,2.87125,2612.1,2611.7,2.87167]
[1723909875096,2.87125,2612.1,2611.6,5.33139]
[1723909875292,5.74257,2612.1,2611.6,2.87179]
[1723909875622,2.3658,2611.9,2611.4,2.4596]
[1723909875805,2.3658,2611.9,2611.4,5.87194]
[1723909876015,5.23731,2611.9,2611.4,5.87194]
[1723909878484,6.1292547,2611.9,2611.4,5.87194]
[1723909878835,6.1292547,2611.9,2611.4,8.7439]
[1723909879123,6.1292547,2611.9,2611.4,5.87194]
[1723909880145,6.1292547,2611.9,2611.4,3.0]
[1723909880344,2.2955,2611.7,2611.3,3.0]
[1723909880502,5.16725,2611.7,2611.2,2.87215]
[1723909881117,2.2955,2611.7,2611.2,2.87215]
[1723909881299,5.16725,2611.7,2611.2,2.87215]
[1723909881650,5.16725,2611.7,2611.2,5.74433]
[1723909881948,5.16725,2611.7,2611.3,2.8721]
[1723909882510,5.971122,2611.7,2611.1,1.99846158]
[1723909882708,2.87196,2611.5,2611.1,2.87234]
[1723909882999,0.8843082,2611.5,2611.1,2.87234]
[1723909884344,2.87181,2611.6,2611.1,2.87234]
[1723909886019,2.87181,2611.6,2611.1,4.19234]
[1723909889659,2.2955,2611.9,2611.5,2.8719]
[1723909889819,2.2955,2611.9,2611.5,4.1919]
[1723909890026,2.2955,2611.9,2611.3,7.06409]
[1723909890027,5.683706,2611.9,2611.3,7.06409]
[1723909890234,5.683706,2611.9,2611.3,4.19204]
[1723909890235,2.87158,2611.8,2611.3,4.19204]
[1723909891311,3.7270996,2611.8,2611.3,4.19204]
[1723909891534,2.2955,2611.7,2611.2,2.87223]
[1723909891812,2.2955,2611.7,2611.1,4.19233]
[1723909891813,5.16725,2611.7,2611.1,4.19233]
[1723909892013,5.16725,2611.7,2611.1,4.19229]
[1723909892318,6.05668496,2611.7,2611.1,7.06458]
[1723909892519,2.87191,2611.5,2610.9,5.35678]
[1723909892730,2.2955,2611.4,2611.0,5.87246]
[1723909894307,2.2955,2611.4,2610.8,2.87261]
[1723909894513,0.516741,2611.3,2610.8,2.87261]
[1723909894712,3.388881,2611.3,2610.8,2.87261]
[1723909895015,2.87214,2611.3,2610.8,5.74523]
[1723909895235,2.87214,2611.3,2610.8,2.87261]
[1723909896377,2.87214,2611.3,2610.8,5.74522]
[1723909896561,2.2955,2611.4,2610.9,2.87256]
[1723909896732,2.944241,2611.4,2610.9,2.87256]
[1723909896933,2.944241,2611.4,2610.9,4.19256]
[1723909897138,2.2955,2611.4,2611.1,1.32]
[1723909897874,2.2955,2611.4,2611.1,4.19233]
[1723909898077,2.2955,2611.4,2611.1,4.19228]
[1723909898987,2.2955,2611.6,2611.1,4.19228]
[1723909899164,2.86985,2611.6,2611.1,4.19228]
[1723909899537,2.86985,2611.6,2611.1,7.06457]
[1723909900144,2.86985,2611.6,2611.1,4.19228]
[1723909900545,2.86985,2611.6,2611.2,2.87218]
[1723909900780,2.2955,2611.6,2611.2,2.87218]
[1723909903397,5.16731,2611.6,2611.2,2.87218]
[1723909903701,2.2955,2611.6,2611.2,2.87218]
[1723909904290,5.16731,2611.6,2611.2,2.87218]
[1723909904604,5.16731,2611.6,2611.1,1.32]
[1723909904802,5.16731,2611.6,2611.0,2.87238]
[1723909904803,0.803906,2611.5,2611.0,2.87238]
[1723909905561,0.803906,2611.5,2611.1,2.87232]
[1723909906921,2.87159,2611.8,2611.2,2.87218]
[1723909907214,2.87159,2611.8,2611.2,5.27178]
[1723909907215,5.28129,2611.8,2611.2,5.27178]
[1723909907508,2.79512568,2611.8,2611.4,2.87196]
[1723909908211,2.87147,2611.9,2611.4,2.87196]
[1723909909504,2.4097,2611.8,2611.4,2.87196]
[1723909909704,2.8718,2611.6,2611.1,2.87224]
[1723909910015,2.4097,2611.4,2611.1,2.87224]
[1723909912225,2.4097,2611.6,2611.1,4.19224]
[1723909912408,2.87172,2611.7,2611.2,5.27182]
[1723909912588,2.87181,2611.6,2611.2,2.3996]
[1723909912795,5.28135,2611.8,2610.9,3.67386512]
[1723909912796,2.4097,2611.8,2611.3,1.32]
[1723909912997,2.87159,2611.8,2611.4,2.3996]
[1723909913179,3.3997,2611.8,2611.3,4.19206]
[1723909913517,8.15256,2612.0,2611.4,2.87201]
[1723909913681,2.87147,2611.9,2611.4,2.87201]
[1723909913881,4.105873,2611.9,2611.4,2.87201]
[1723909914297,4.105873,2611.9,2611.3,4.19206]
[1723909914523,2.8716,2611.8,2611.3,4.19206]
[1723909914733,4.105873,2611.9,2611.4,2.872]
[1723909915528,4.105873,2611.9,2611.3,4.19206]
[1723909915529,2.87158,2611.8,2611.3,4.19206]
[1723909916932,5.28139,2611.7,2611.1,4.19224]
[1723909917131,2.4097,2611.7,2611.2,2.87218]
[1723909917848,2.4097,2611.7,2611.3,2.87213]
[1723909920214,2.394,2611.9,2611.5,1.32]
[1723909920418,7.45,2612.0,2611.5,1.32]
[1723909920419,7.45,2612.0,2611.5,4.19183]
[1723909920724,14.13087125,2612.0,2611.5,2.87181]
[1723909920926,2.87158,2611.8,2611.3,4.19206]
[1723909921117,2.87158,2611.8,2611.3,2.87206]
[1723909921655,2.87158,2611.8,2611.3,5.74413]
[1723909921833,2.87158,2611.8,2611.3,2.87206]
[1723909922027,2.87158,2611.8,2611.3,5.74414]
[1723909922229,7.45,2612.0,2611.7,2.87168]
[1723909922555,22.164,2612.1,2611.7,2.87168]
[1723909922750,3.4314,2612.0,2611.7,2.87168]
[1723909923730,2.394,2611.9,2611.7,2.87168]
[1723909923932,2.394,2611.9,2611.5,2.87183]
[1723909926267,2.394,2611.9,2611.6,2.87179]
[1723909926429,22.164,2612.1,2611.8,2.87152]
[1723909926773,2.394,2612.1,2611.8,2.87152]
[1723909928269,2.394,2612.2,2611.8,2.87152]
[1723909928570,10.32093,2612.4,2611.9,2.87146]
[1723909928571,12.71493,2612.4,2611.9,2.87146]
[1723909928770,12.71493,2612.4,2612.0,2.87134]
[1723909929280,2.87103,2612.3,2611.9,2.87146]
[1723909929870,2.394,2612.2,2611.9,2.87146]
[1723909930086,2.394,2612.2,2611.8,2.87157]
[1723909930461,5.26514,2612.2,2611.8,2.87157]
[1723909930772,0.658514,2612.1,2611.8,2.87157]
[1723909930974,2.394,2612.2,2611.8,2.87157]
[1723909932765,2.394,2612.2,2611.9,2.8714]
[1723909933104,7.45,2612.4,2612.1,2.8712]
[1723909933701,7.45,2612.4,2612.2,2.87113]
[1723909934977,7.45,2612.4,2612.2,2.87107]
[1723909935909,7.45,2612.4,2612.1,2.87124]
[1723909937603,7.45,2612.4,2612.0,2.87127]
[1723909937806,7.45,2612.4,2612.2,2.87113]
[1723909938504,19.77,2612.5,2612.2,2.87113]
[1723909938713,19.77,2612.5,2612.3,2.87103]
[1723909938894,19.77,2612.7,2612.3,1.32]
[1723909939203,2.394,2612.9,2612.3,1.32]
[1723909939204,2.394,2612.9,2612.6,2.87061]
[1723909939411,2.394,2612.9,2612.5,2.87076]
[1723909939580,2.394,2612.9,2612.5,2.87073]
[1723909940180,2.394,2612.9,2612.6,2.8707]
[1723909940408,2.394,2612.9,2612.5,2.87073]
[1723909941397,2.920427,2612.9,2612.5,2.87073]
[1723909942002,2.2926,2613.1,2612.7,2.87053]
[1723909943169,2.2926,2613.3,2612.9,2.87031]
[1723909943373,2.2926,2613.3,2612.9,2.8703]
[1723909943667,2.808849,2613.3,2613.0,2.87026]
[1723909943872,2.2926,2613.6,2613.2,2.87003]
[1723909944108,6.03848007,2613.6,2613.2,2.87003]
[1723909944312,5.1622,2613.6,2613.0,5.74037]
[1723909944727,5.1622,2613.6,2613.1,2.87012]
[1723909945023,5.81605286,2613.6,2613.1,2.87012]
[1723909945772,5.1622,2613.6,2613.1,2.87012]
[1723909946773,5.1622,2613.6,2613.0,5.74035]
[1723909946774,8.03186,2613.6,2613.0,5.74035]
[1723909946981,2.86972,2613.5,2613.0,2.87015]
[1723909947176,3.672906,2613.5,2613.0,2.87015]
[1723909947496,3.672906,2613.5,2613.0,37.87015]
[1723909947709,2.86972,2613.5,2613.0,37.87015]
[1723909947890,2.2926,2613.3,2612.8,2.8704]
[1723909948089,5.1626,2613.3,2612.8,2.8704]
[1723909948512,2.2926,2613.3,2612.9,2.87032]
[1723909948680,2.2926,2613.3,2613.1,2.8701]
[1723909950580,2.2926,2613.3,2612.9,5.74058]
[1723909950924,2.808832,2613.3,2612.7,2.8705]
[1723909951228,5.678812,2613.3,2612.8,5.87045]
[1723909951394,5.16258,2613.3,2612.8,5.87045]
[1723909952781,2.338,2613.1,2612.7,5.74103]
[1723909952975,2.338,2613.1,2612.7,2.8705]
[1723909953213,2.338,2613.1,2612.8,2.87048]
[1723909955921,2.338,2613.1,2612.9,2.87037]
[1723909956743,2.624979,2613.4,2613.0,2.87021]
[1723909956925,0.5494699,2613.3,2613.0,2.87021]
[1723909957695,2.624979,2613.4,2613.0,2.87021]
[1723909958448,2.338,2613.4,2613.0,2.87021]
[1723909958640,2.338,2613.4,2613.2,2.87002]
[1723909958942,2.338,2613.7,2613.3,2.86993]
[1723909959186,2.624941,2613.7,2613.3,2.86993]
[1723909960592,2.624941,2613.7,2613.2,2.86996]
[1723909960593,3.156521,2613.7,2613.2,2.86996]
[1723909960746,2.4443,2613.6,2613.2,2.86996]
[1723909960943,0.5600821,2613.5,2613.2,2.86996]
[1723909962977,2.4443,2613.4,2612.8,2.87039]
[1723909963280,2.74473821,2613.4,2612.8,2.87039]
[1723909963800,5.61460821,2613.4,2612.9,2.87032]
[1723909964160,5.31417,2613.4,2612.9,2.87032]
[1723909964360,5.31417,2613.4,2613.0,2.87025]
[1723909966063,2.4443,2613.4,2613.0,5.74045]
[1723909966264,2.4443,2613.4,2613.0,2.8702]
[1723909968859,2.4443,2613.4,2613.1,2.87014]
[1723909970253,7.45,2613.7,2613.3,2.86993]
[1723909970497,9.8943,2613.7,2613.5,2.8697]
[1723909970695,9.8943,2613.7,2613.3,2.86993]
[1723909970696,9.8943,2613.7,2613.4,2.86981]
[1723909972963,11.2123,2613.7,2613.3,2.86993]
[1723909973167,12.00754526,2613.7,2613.3,2.86993]
[1723909973398,12.00754526,2613.7,2613.3,2.86988]
[1723909973963,1.318,2613.5,2612.9,37.87034]
[1723909974223,2.4443,2613.4,2613.0,2.87019]
[1723909975390,2.4443,2613.4,2613.1,2.87014]
[1723909981696,2.4443,2613.4,2613.0,37.87025]
[1723909982114,2.4443,2613.4,2613.1,2.87012]
[1723909985724,5.1848,2613.6,2613.1,37.87012]
[1723909986225,2.8696,2613.6,2613.1,37.87012]
[1723909986391,2.3152,2613.5,2613.1,37.87012]
[1723909987427,2.3152,2613.5,2613.1,2.87012]
[1723909988332,4.18772,2613.5,2613.0,37.87025]
[1723909988541,2.3152,2613.4,2613.0,37.87025]
[1723909988892,2.3152,2613.4,2613.0,2.87025]
[1723909989457,2.3152,2613.4,2613.0,5.74046]
[1723909990745,2.3152,2613.4,2613.0,5.74042]
[1723909991814,2.3152,2613.4,2613.0,5.74041]
[1723909992117,2.3152,2613.4,2613.0,2.8702]
[1723909992437,2.3152,2613.4,2613.0,5.74041]
[1723909992825,2.3152,2613.4,2613.0,2.8702]
[1723909994460,5.703532,2613.4,2613.0,2.8702]
[1723909994667,5.703532,2613.4,2612.7,2.11937512]
[1723909994668,2.3152,2613.0,2612.5,2.87074]
[1723909994873,0.51854,2612.9,2612.6,2.87065]
[1723909995082,2.3152,2613.0,2612.6,2.87065]
[1723909995738,2.3152,2613.0,2612.7,2.87058]
[1723909996461,2.3152,2613.0,2612.5,5.74145]
[1723909996969,2.3152,2613.0,2612.6,2.87068]
[1723909998435,2.833736,2613.0,2612.6,2.87068]
[1723909998631,2.833736,2613.0,2612.4,2.87092]
[1723909998891,5.18569,2612.8,2612.3,2.87095]
[1723910000173,2.4843,2612.7,2612.4,2.87092]
[1723910001743,2.87071,2612.6,2612.0,4.86906252]
[1723910001943,0.24843,2612.6,2612.2,2.87104]
[1723910002281,5.35489,2612.7,2612.2,2.87104]
[1723910002853,5.35489,2612.7,2612.3,2.87101]
[1723910003058,5.35489,2612.7,2612.5,2.8708]
[1723910003059,2.4843,2612.7,2612.5,2.8708]
[1723910005292,2.4843,2612.9,2612.6,2.8707]
[1723910005580,2.4843,2612.9,2612.3,4.18895]
[1723910005581,2.4843,2612.9,2612.3,4.18898]
[1723910005780,2.4843,2612.9,2612.5,2.87073]
[1723910005982,2.4843,2613.1,2612.9,2.87031]
[1723910006194,2.4843,2613.3,2613.0,2.87024]
[1723910006348,2.4843,2613.3,2612.9,2.87031]
[1723910006749,2.4843,2613.3,2613.0,2.87025]
[1723910006950,2.4843,2613.5,2613.1,2.87009]
[1723910008089,2.4843,2613.5,2613.2,2.87002]
[1723910008667,2.4843,2613.5,2613.1,2.87015]
[1723910009007,2.4843,2613.5,2613.1,2.87009]
[1723910011166,2.4843,2613.5,2612.9,2.87026]
[1723910011167,2.86982,2613.4,2612.9,2.87026]
[1723910011489,2.4843,2613.3,2612.9,2.87026]
[1723910016087,2.4843,2613.3,2613.0,2.87018]
[1723910016617,2.4843,2613.3,2613.1,2.87014]
[1723910016830,2.4843,2613.3,2613.0,2.87025]
[1723910017113,2.4843,2613.3,2613.1,2.87015]
[1723910017927,2.4843,2613.3,2613.0,2.87025]